bitfinex-derivatives/quotes_SOLF0:USTF0_20251211
["timestamp","ask_amount","ask_price","bid_price","bid_amount"]
[1765466233991,0.05386413,131.12,131.1,0.05831375]
[1765466234188,0.05386413,131.12,131.1,3.35831375]
[1765466234587,6.8616,131.16,131.1,3.35831375]
[1765466234792,3.19,131.16,131.1,3.3]
[1765466234989,7.7851337,131.18,131.1,3.3]
[1765466235395,6.861,131.17,131.11,3.3]
[1765466235696,0.05781568,131.15,131.13,0.0568974]
[1765466236693,3.24781568,131.15,131.13,0.0568974]
[1765466237505,0.05781568,131.15,131.13,0.0568974]
[1765466238292,0.05781568,131.15,131.13,3.3068974]
[1765466239293,0.05781568,131.15,131.13,0.0568974]
[1765466240001,3.30781568,131.15,131.13,0.0568974]
[1765466240590,10.17001568,131.15,131.13,0.0568974]
[1765466240795,3.25,131.14,131.13,0.0568974]
[1765466241391,6.8634,131.12,131.07,3.22]
[1765466241794,3.25,131.19,131.09,3.22]
[1765466242001,6.8606,131.18,131.11,3.22]
[1765466242191,3.25,131.19,131.11,3.22]
[1765466242396,0.05803592,131.16,131.14,0.05225183]
[1765466242798,3.30803592,131.16,131.14,0.05225183]
[1765466243306,10.16943592,131.16,131.14,0.05225183]
[1765466243609,3.30803592,131.16,131.14,0.05225183]
[1765466243805,0.05803592,131.16,131.14,3.27225183]
[1765466244103,0.05803592,131.16,131.14,0.05225183]
[1765466245202,3.30803592,131.16,131.14,0.05225183]
[1765466245605,10.16943592,131.16,131.14,0.05225183]
[1765466246507,0.05803592,131.16,131.14,0.05225183]
[1765466247210,0.05803592,131.16,131.14,3.27225183]
[1765466248407,0.05803592,131.16,131.14,10.13405183]
[1765466248612,0.05803592,131.16,131.14,3.27225183]
[1765466249000,3.25,131.23,131.14,3.27225183]
[1765466249204,109.9278,131.23,131.14,3.22]
[1765466249512,3.25,131.22,131.14,3.22]
[1765466249902,6.8592,131.2,131.16,3.22]
[1765466250101,3.29868507,131.19,131.17,0.0571024]
[1765466250507,10.15848507,131.19,131.17,0.0571024]
[1765466250707,3.25,131.18,131.17,0.0571024]
[1765466251303,0.04868507,131.19,131.17,0.0571024]
[1765466252605,10.15858507,131.19,131.17,0.0571024]
[1765466252806,3.25,131.18,131.17,0.0571024]
[1765466253008,0.04868507,131.19,131.17,0.0571024]
[1765466253216,0.04868507,131.19,131.17,3.2771024]
[1765466255519,0.04868507,131.19,131.17,10.1378024]
[1765466256129,0.04868507,131.19,131.18,3.22]
[1765466257712,0.04868507,131.19,131.18,10.0802]
[1765466257919,3.25,131.26,131.19,3.22]
[1765466258417,5.7824328,131.25,131.19,3.22]
[1765466258614,10.1065,131.25,131.21,6.8585]
[1765466258819,10.1065,131.25,131.21,10.0785]
[1765466259025,0.05221002,131.24,131.22,0.0558397]
[1765466259218,3.30221002,131.24,131.22,0.0558397]
[1765466259423,0.05221002,131.24,131.22,3.2758397]
[1765466259924,0.05221002,131.24,131.22,0.0558397]
[1765466260827,3.30221002,131.24,131.22,0.0558397]
[1765466262317,0.05221002,131.24,131.22,10.1339397]
[1765466262722,0.05221002,131.24,131.22,3.2758397]
[1765466263028,0.05221002,131.24,131.23,6.8576]
[1765466263922,0.05221002,131.24,131.22,0.0558397]
[1765466264428,0.05221002,131.24,131.22,3.2758397]
[1765466264825,0.05221002,131.24,131.22,10.1339397]
[1765466265021,0.05221002,131.24,131.23,3.22]
[1765466266124,10.27571753,131.3,131.23,3.22]
[1765466266331,5.70139844,131.29,131.23,3.22]
[1765466266623,3.25,131.31,131.23,3.22]
[1765466266821,3.25,131.29,131.23,3.22]
[1765466267229,0.05437953,131.27,131.25,3.26851129]
[1765466267531,0.05437953,131.27,131.25,0.04851129]
[1765466267832,3.30437953,131.27,131.25,0.04851129]
[1765466268036,0.05437953,131.27,131.25,3.26851129]
[1765466268724,3.36,131.34,131.27,3.36]
[1765466268930,9.06233438,131.33,131.27,3.36]
[1765466269129,3.36,131.33,131.27,68.12]
[1765466269330,3.36,131.35,131.28,3.36]
[1765466269531,10.213,131.32,131.28,3.36]
[1765466269731,0.05387397,131.31,131.29,0.04844126]
[1765466270133,0.05387397,131.31,131.29,3.40844126]
[1765466271032,0.05387397,131.31,131.29,0.04844126]
[1765466271444,0.05387397,131.31,131.29,3.40844126]
[1765466272033,10.26757397,131.31,131.29,0.04844126]
[1765466272642,3.36,131.3,131.29,0.04844126]
[1765466273451,3.41387397,131.31,131.29,0.04844126]
[1765466273748,0.05387397,131.31,131.29,3.40844126]
[1765466274942,0.05387397,131.31,131.29,10.26284126]
[1765466275144,0.05387397,131.31,131.3,3.36]
[1765466277039,3.36,131.38,131.31,3.36]
[1765466277245,3.36,131.38,131.32,3.36]
[1765466277547,2.1602466,131.41,131.34,3.36]
[1765466277947,3.36,131.4,131.36,0.04855327]
[1765466278137,3.36,131.4,131.36,3.40855327]
[1765466278446,10.2088,131.4,131.36,3.40855327]
[1765466279234,2.1602466,131.41,131.36,3.40855327]
[1765466279440,2.1602466,131.41,131.37,3.36]
[1765466279736,5.5202466,131.41,131.37,3.36]
[1765466280046,2.1602466,131.41,131.37,3.36]
[1765466280642,3.36,131.47,131.39,3.36]
[1765466280839,6.8444,131.49,131.43,3.36]
[1765466281044,3.36,131.49,131.43,3.36]
[1765466281245,10.2053,131.47,131.45,0.05760134]
[1765466281441,3.36,131.44,131.37,3.36]
[1765466281645,3.36,131.43,131.37,3.36]
[1765466281849,3.36,131.4,131.35,68.08]
[1765466282148,109.8754,131.43,131.36,3.36]
[1765466282353,3.36,131.46,131.37,3.36]
[1765466282657,0.05029156,131.43,131.41,3.36]
[1765466283952,3.41029156,131.43,131.4,0.05381012]
[1765466284250,0.05029156,131.43,131.4,3.41381012]
[1765466284552,0.05029156,131.43,131.42,3.36]
[1765466284750,3.36,131.5,131.42,3.36]
[1765466285055,109.8254,131.49,131.42,3.36]
[1765466285350,6.8453,131.47,131.42,3.36]
[1765466285551,3.36,131.48,131.42,3.36]
[1765466285751,3.36,131.48,131.44,0.05742312]
[1765466285951,10.2054,131.47,131.44,0.05742312]
[1765466286149,106.467,131.49,131.44,0.05742312]
[1765466286150,3.36,131.49,131.44,0.05742312]
[1765466286349,3.36,131.47,131.44,0.05742312]
[1765466286951,3.36,131.46,131.44,0.05742312]
[1765466287146,3.36,131.48,131.44,3.41742312]
[1765466287349,3.36,131.48,131.44,0.05742312]
[1765466288544,3.36,131.45,131.44,0.05742312]
[1765466289451,3.36,131.45,131.38,3.36]
[1765466289452,3.36,131.44,131.38,3.36]
[1765466290457,0.04899627,131.42,131.4,0.05579823]
[1765466290956,0.04899627,131.42,131.4,3.41579823]
[1765466291159,3.36,131.5,131.41,3.36]
[1765466291358,3.36,131.5,131.42,3.36]
[1765466292050,3.36,131.46,131.45,0.04946751]
[1765466292753,10.22977916,131.47,131.45,0.04946751]
[1765466292951,3.38427916,131.47,131.45,0.04946751]
[1765466293152,0.02427916,131.47,131.45,0.04946751]
[1765466294860,3.38427916,131.47,131.45,0.04946751]
[1765466295252,10.22967916,131.47,131.45,0.04946751]
[1765466295453,3.38427916,131.47,131.45,0.04946751]
[1765466295853,10.22977916,131.47,131.45,0.04946751]
[1765466296049,3.36,131.46,131.45,0.04946751]
[1765466297755,9.97977916,131.47,131.45,0.04946751]
[1765466298264,3.13427916,131.47,131.45,0.04946751]
[1765466298764,0.02427916,131.47,131.45,0.04946751]
[1765466299058,3.21,131.54,131.45,3.45946751]
[1765466299266,3.21,131.54,131.45,3.41]
[1765466299658,3.21,131.52,131.48,10.2545]
[1765466300054,3.21,131.52,131.49,0.04992127]
[1765466300259,3.21,131.55,131.49,3.45992127]
[1765466300562,3.21,131.58,131.49,3.45992127]
[1765466300758,3.21,131.55,131.52,0.05713854]
[1765466301352,3.21,131.53,131.52,0.05713854]
[1765466302259,3.21,131.56,131.52,0.05713854]
[1765466302860,3.21,131.59,131.52,3.46713854]
[1765466303562,10.0493,131.59,131.52,10.30923854]
[1765466303762,10.0493,131.59,131.53,3.41]
[1765466303960,10.0493,131.59,131.55,0.05148353]
[1765466304157,3.21,131.61,131.55,3.46148353]
[1765466304360,3.21,131.63,131.57,0.05278647]
[1765466304660,3.21,131.61,131.57,0.05278647]
[1765466304864,3.21,131.61,131.58,0.0571187]
[1765466305465,10.048,131.61,131.58,0.0571187]
[1765466305767,3.21,131.6,131.58,0.0571187]
[1765466305964,109.6011,131.58,131.52,3.41]
[1765466306167,3.21,131.57,131.49,22.54171822]
[1765466306367,3.21,131.57,131.5,3.41]
[1765466306759,10.0502,131.57,131.5,10.2532]
[1765466306960,3.25831529,131.55,131.52,0.05693129]
[1765466307460,0.04831529,131.55,131.52,3.46693129]
[1765466308570,3.25831529,131.55,131.52,0.05693129]
[1765466309367,0.04831529,131.55,131.52,3.46693129]
[1765466311673,3.25831529,131.55,131.52,0.05693129]
[1765466311967,0.04831529,131.55,131.52,3.46693129]
[1765466315973,3.25831529,131.55,131.52,0.05693129]
[1765466316159,3.21,131.54,131.52,0.05693129]
[1765466316566,10.0516,131.54,131.52,0.05693129]
[1765466316769,3.21,131.53,131.52,0.05693129]
[1765466317167,6.8416,131.54,131.52,0.05693129]
[1765466317375,3.25831529,131.55,131.52,0.05693129]
[1765466319378,0.04831529,131.55,131.52,3.46693129]
[1765466320173,3.25831529,131.55,131.52,0.05693129]
[1765466320374,0.04831529,131.55,131.52,0.05693129]
[1765466320577,3.25831529,131.55,131.52,0.05693129]
[1765466320880,3.21,131.54,131.52,0.05693129]
[1765466321783,3.21,131.53,131.52,0.05693129]
[1765466323681,3.21,131.51,131.46,10.2552]
[1765466323878,3.21,131.51,131.45,64.62]
[1765466324679,3.26377381,131.49,131.47,0.05562842]
[1765466325880,10.10787381,131.49,131.47,0.05562842]
[1765466328379,3.21,131.46,131.4,3.41]
[1765466328884,3.21,131.46,131.42,6.8476]
[1765466329484,3.27244034,131.45,131.43,0.04891446]
[1765466331485,10.11874034,131.45,131.43,0.04891446]
[1765466331688,3.22,131.44,131.39,64.62]
[1765466332079,3.22,131.43,131.39,64.62]
[1765466332284,3.22,131.43,131.34,3.27]
[1765466332285,3.22,131.42,131.34,3.27]
[1765466332481,3.22,131.42,131.34,67.91]
[1765466332689,3.22,131.42,131.37,0.04923456]
[1765466332690,3.27298671,131.39,131.37,0.04923456]
[1765466333089,6.8504,131.37,131.31,71.493]
[1765466333293,10.0704,131.37,131.31,71.493]
[1765466333494,3.22,131.36,131.3,3.27]
[1765466333695,3.22,131.34,131.3,3.27]
[1765466334093,0.05318835,131.33,131.31,3.32375958]
[1765466334316,0.05318835,131.33,131.31,0.05375958]
[1765466334491,0.05318835,131.33,131.31,3.32375958]
[1765466335890,0.05318835,131.33,131.31,0.05375958]
[1765466337187,0.05318835,131.33,131.31,3.32375958]
[1765466338189,0.05318835,131.33,131.31,10.17705958]
[1765466338391,3.27318835,131.33,131.31,0.05375958]
[1765466339386,10.12578835,131.33,131.31,0.05375958]
[1765466339592,0.05318835,131.33,131.31,3.32375958]
[1765466339900,0.05318835,131.33,131.31,0.05375958]
[1765466340100,3.22,131.32,131.31,0.05375958]
[1765466340287,3.27318835,131.33,131.31,0.05375958]
[1765466340492,0.05318835,131.33,131.31,3.32375958]
[1765466340694,3.27318835,131.33,131.31,0.05375958]
[1765466341305,0.05318835,131.33,131.31,3.32375958]
[1765466341993,0.05318835,131.33,131.31,10.17695958]
[1765466342496,3.22,131.4,131.34,6.8517]
[1765466343301,10.0689,131.4,131.34,6.8517]
[1765466343503,3.22,131.4,131.35,6.8512]
[1765466343710,0.0492895,131.38,131.36,0.05546202]
[1765466343996,3.2692895,131.38,131.36,0.05546202]
[1765466344395,0.0492895,131.38,131.36,0.05546202]
[1765466344601,0.0492895,131.38,131.36,3.32546202]
[1765466345086,0.0492895,131.38,131.36,0.05546202]
[1765466345288,3.22,131.45,131.36,3.32546202]
[1765466345495,3.22,131.45,131.4,3.27]
[1765466345702,3.22,131.45,131.41,3.27]
[1765466346601,3.2711191,131.44,131.42,0.04815613]
[1765466346998,10.1180191,131.44,131.42,0.04815613]
[1765466347192,3.22,131.43,131.35,3.27]
[1765466347400,3.22,131.43,131.38,3.27]
[1765466347704,3.22,131.46,131.4,3.27]
[1765466348302,0.05431304,131.44,131.42,0.05496377]
[1765466349398,10.12111304,131.44,131.42,0.05496377]
[1765466349596,3.22,131.43,131.42,0.05496377]
[1765466350000,0.05431304,131.44,131.42,0.05496377]
[1765466350298,3.27431304,131.44,131.42,0.05496377]
[1765466350506,10.12101304,131.44,131.42,0.05496377]
[1765466350807,3.22,131.43,131.42,0.05496377]
[1765466353699,0.05431304,131.44,131.42,0.05496377]
[1765466353904,3.27431304,131.44,131.42,0.05496377]
[1765466354301,0.05431304,131.44,131.42,0.05496377]
[1765466354508,0.05431304,131.44,131.42,3.34496377]
[1765466354997,0.05431304,131.44,131.42,10.19236377]
[1765466355403,0.05431304,131.44,131.43,3.29]
[1765466356110,0.05431304,131.44,131.42,0.05496377]
[1765466356503,0.05431304,131.44,131.43,3.29]
[1765466357510,0.05431304,131.44,131.42,0.05496377]
[1765466357708,0.05431304,131.44,131.42,3.34496377]
[1765466357905,0.05431304,131.44,131.42,10.19256377]
[1765466358209,0.05431304,131.44,131.43,3.29]
[1765466358708,0.05431304,131.44,131.42,0.05496377]
[1765466360014,0.05431304,131.44,131.42,3.20496377]
[1765466360411,0.05431304,131.44,131.43,3.15]
[1765466360613,3.42,131.51,131.43,3.15]
[1765466361716,0.0486179,131.48,131.46,0.05296003]
[1765466362313,3.4686179,131.48,131.46,0.05296003]
[1765466362913,10.3132179,131.48,131.46,0.05296003]
[1765466363623,3.42,131.47,131.46,0.05296003]
[1765466368619,6.8932179,131.48,131.46,0.05296003]
[1765466368816,3.42,131.47,131.46,0.05296003]
[1765466370017,3.42,131.47,131.29,18.793314]
[1765466370323,3.42,131.44,131.37,6.8498]
[1765466370514,3.42,131.44,131.37,9.9998]
[1765466370714,3.42,131.41,131.37,3.15]
[1765466371125,0.05809574,131.4,131.38,0.04827708]
[1765466371518,0.05809574,131.4,131.38,3.19827708]
[1765466373929,0.05809574,131.4,131.39,9.9992]
[1765466375128,6.8466,131.45,131.42,3.15]
[1765466376128,6.90325807,131.45,131.42,3.20433859]
[1765466376926,0.05665807,131.45,131.42,3.20433859]
[1765466378127,0.05665807,131.45,131.42,10.05203859]
[1765466378935,0.05665807,131.45,131.43,6.847]
[1765466379138,0.05665807,131.45,131.43,9.997]
[1765466380141,0.05665807,131.45,131.43,3.15]
[1765466380338,0.05665807,131.45,131.42,109.72183859]
[1765466380534,3.42,131.51,131.44,3.15]
[1765466380844,3.42,131.51,131.47,6.8451]
[1765466381537,10.31301967,131.5,131.48,0.05711224]
[1765466381734,3.42,131.49,131.41,109.6753]
[1765466381926,3.42,131.49,131.43,3.15]
[1765466382934,0.0491145,131.47,131.46,6.8455]
[1765466384022,0.0491145,131.47,131.45,3.19807301]
[1765466384426,0.0491145,131.47,131.45,0.04807301]
[1765466384622,3.4691145,131.47,131.45,0.04807301]
[1765466386728,10.3143145,131.47,131.45,0.04807301]
[1765466386935,10.3143145,131.47,131.42,64.66]
[1765466386936,3.42,131.46,131.42,64.66]
[1765466387934,3.42,131.44,131.43,0.05113409]
[1765466390335,3.19,131.43,131.38,3.15]
[1765466390637,109.6806,131.46,131.38,3.15]
[1765466390827,3.19,131.46,131.39,3.23]
[1765466391230,3.24279439,131.44,131.41,0.0553317]
[1765466391426,3.19,131.43,131.41,0.0553317]
[1765466392542,0.05279439,131.44,131.41,0.0553317]
[1765466392735,3.24279439,131.44,131.41,0.0553317]
[1765466393530,10.0373,131.43,131.41,0.0553317]
[1765466394540,6.8473,131.43,131.41,0.0553317]
[1765466396036,0.05279439,131.44,131.42,3.23]
[1765466396242,0.05279439,131.44,131.43,67.89]
[1765466396433,3.19,131.5,131.43,67.89]
[1765466396639,3.19,131.5,131.44,3.23]
[1765466397234,3.19,131.53,131.46,10.0755]
[1765466397645,0.04812103,131.51,131.48,0.04918443]
[1765466397828,6.89122103,131.51,131.48,3.27918443]
[1765466398030,0.04812103,131.51,131.48,3.27918443]
[1765466398436,0.04812103,131.51,131.5,3.23]
[1765466398939,6.8394,131.58,131.51,10.0728]
[1765466399241,10.0294,131.58,131.51,3.23]
[1765466399946,0.05865319,131.56,131.53,0.04909425]
[1765466400349,0.05865319,131.56,131.53,25.78200551]
[1765466400643,0.05865319,131.56,131.53,0.04909425]
[1765466400949,3.24865319,131.56,131.53,0.04909425]
[1765466401748,3.19,131.55,131.53,0.04909425]
[1765466402146,3.19,131.54,131.5,67.87]
[1765466402845,3.19,131.54,131.5,90.12486372]
[1765466403146,0.05858935,131.53,131.51,0.05668439]
[1765466403442,3.19,131.63,131.56,3.23]
[1765466403644,3.19,131.63,131.57,3.23]
[1765466404346,3.23866746,131.61,131.59,0.05553149]
[1765466405535,3.23866746,131.61,131.52,64.64]
[1765466405736,3.19,131.61,131.53,3.23]
[1765466406150,6.8386,131.6,131.53,10.0718]
[1765466406450,10.0286,131.6,131.53,10.0718]
[1765466406645,0.055651,131.58,131.55,0.04876127]
[1765466407048,0.055651,131.58,131.55,3.27876127]
[1765466407444,0.055651,131.58,131.57,3.23]
[1765466409643,0.055651,131.58,131.55,6.88946127]
[1765466409848,0.055651,131.58,131.56,3.23]
[1765466410347,3.245651,131.58,131.55,0.04876127]
[1765466410548,0.055651,131.58,131.55,3.27876127]
[1765466412659,64.64,131.64,131.57,3.23]
[1765466412852,109.5292,131.65,131.58,3.09]
[1765466413255,109.4998,131.68,131.59,3.09]
[1765466413452,3.19,131.67,131.59,3.09]
[1765466413652,0.05205637,131.64,131.62,3.14540123]
[1765466414057,0.05205637,131.64,131.63,3.09]
[1765466414268,3.19,131.7,131.63,3.09]
[1765466414464,3.19,131.73,131.64,3.09]
[1765466414765,3.19,131.77,131.7,3.09]
[1765466415064,3.19,131.77,131.7,67.69]
[1765466415255,0.05477304,131.75,131.74,3.09]
[1765466415457,4.25052548,131.79,131.76,3.09]
[1765466415658,4.25052548,131.79,131.74,3.09]
[1765466415854,4.25052548,131.79,131.76,3.14083286]
[1765466415855,4.29884402,131.79,131.76,3.14083286]
[1765466416156,3.19,131.82,131.77,3.09]
[1765466416558,10.0172,131.82,131.77,3.09]
[1765466416768,3.19,131.82,131.77,3.09]
[1765466417168,0.04457541,131.81,131.77,3.09]
[1765466418376,3.23457541,131.81,131.77,3.09]
[1765466418675,0.04457541,131.81,131.77,3.09]
[1765466419073,3.1,131.87,131.79,3.24]
[1765466419471,3.1,131.86,131.79,3.24]
[1765466420073,3.1,131.86,131.81,0.05088366]
[1765466420272,3.1,131.86,131.81,3.29088366]
[1765466420576,3.1,131.85,131.81,0.05088366]
[1765466420779,9.9255,131.85,131.81,0.05088366]
[1765466421072,3.1,131.88,131.81,3.29088366]
[1765466421372,3.1,131.88,131.82,3.24]
[1765466421583,3.1,131.88,131.84,0.05472532]
[1765466421872,64.58,131.91,131.84,3.29472532]
[1765466422073,67.68,131.91,131.84,3.29472532]
[1765466422377,173.8061,131.91,131.84,3.29472532]
[1765466422570,3.1,131.88,131.84,0.05472532]
[1765466423570,3.1,131.88,131.84,3.29472532]
[1765466424087,3.1,131.91,131.84,3.29472532]
[1765466424474,9.9232,131.9,131.84,3.29472532]
[1765466424781,3.1,131.9,131.84,3.29472532]
[1765466424974,3.1,131.85,131.84,0.05472532]
[1765466425177,3.1,131.85,131.78,3.24]
[1765466425377,109.2752,131.85,131.78,3.24]
[1765466426083,3.14957197,131.83,131.8,0.05020214]
[1765466426478,116.1244,131.82,131.8,0.05020214]
[1765466426678,3.1,131.81,131.8,0.05020214]
[1765466426884,3.1,131.81,131.75,67.76]
[1765466426885,3.1,131.79,131.75,67.76]
[1765466427285,6.8288,131.79,131.75,67.76]
[1765466427480,9.9288,131.79,131.75,67.76]
[1765466427686,3.1,131.81,131.76,3.24]
[1765466427881,118.27454627,131.83,131.77,0.05177434]
[1765466427882,3.15815569,131.8,131.77,0.05177434]
[1765466428383,0.05815569,131.8,131.77,0.05177434]
[1765466429686,3.1,131.78,131.77,0.05177434]
[1765466429884,3.1,131.78,131.7,72.1711155]
[1765466429885,106.2377,131.77,131.7,64.5]
[1765466430078,9.9304,131.76,131.7,64.5]
[1765466430274,3.1,131.76,131.7,67.74]
[1765466430882,0.04851647,131.74,131.72,0.05204647]
[1765466431584,6.8287,131.79,131.72,3.29204647]
[1765466431786,9.9287,131.79,131.72,26.0539675]
[1765466431988,9.9287,131.79,131.72,3.29204647]
[1765466432789,0.05654135,131.77,131.73,3.24]
[1765466432980,3.15654135,131.77,131.74,0.05522955]
[1765466433385,3.1,131.75,131.74,0.05522955]
[1765466433986,3.15654135,131.77,131.74,0.05522955]
[1765466434479,0.05654135,131.77,131.74,0.05522955]
[1765466435486,0.05654135,131.77,131.74,3.29522955]
[1765466436784,0.05654135,131.77,131.75,3.24]
[1765466437689,3.1,131.84,131.75,3.24]
[1765466437992,3.1,131.84,131.78,6.8287]
[1765466438384,3.1,131.84,131.79,3.24]
[1765466438789,0.05164398,131.83,131.8,6.87924963]
[1765466438989,0.05164398,131.83,131.8,10.11924963]
[1765466439184,3.15164398,131.83,131.8,0.05154963]
[1765466440793,7.6711155,131.81,131.73,64.5]
[1765466440988,3.1,131.8,131.73,64.5]
[1765466441394,3.1,131.8,131.73,67.74]
[1765466441591,6.8286,131.79,131.73,67.74]
[1765466441788,0.0528864,131.77,131.75,0.05214794]
[1765466442492,0.0528864,131.77,131.75,3.29214794]
[1765466442695,3.1528864,131.77,131.75,0.05214794]
[1765466442893,0.0528864,131.77,131.75,0.05214794]
[1765466444097,0.0528864,131.77,131.75,3.29214794]
[1765466444795,3.1,131.84,131.76,3.24]
[1765466445598,3.1,131.8,131.73,75.4111155]
[1765466445798,3.1,131.8,131.74,3.24]
[1765466445998,0.05030721,131.78,131.75,3.29398546]
[1765466446201,3.15030721,131.78,131.75,0.05398546]
[1765466446389,0.05030721,131.78,131.75,0.05398546]
[1765466446596,0.05030721,131.78,131.75,3.29398546]
[1765466448596,0.05030721,131.78,131.75,10.12438546]
[1765466448997,3.24,131.85,131.76,3.27]
[1765466449199,10.0659,131.84,131.78,6.8288]
[1765466449394,10.0659,131.84,131.77,3.27]
[1765466449705,10.0666,131.83,131.77,10.0991]
[1765466450004,3.24,131.82,131.79,0.05163056]
[1765466450600,3.24,131.83,131.79,3.32163056]
[1765466450807,3.24,131.83,131.79,0.05163056]
[1765466451703,3.24,131.84,131.79,3.32163056]
[1765466452893,3.24,131.87,131.79,109.53923056]
[1765466453096,7.6711155,131.88,131.79,109.53923056]
[1765466453097,3.24,131.86,131.82,3.32120611]
[1765466453295,3.24,131.86,131.82,10.14800611]
[1765466453499,3.24,131.86,131.82,0.05120611]
[1765466454208,10.9111155,131.89,131.82,3.32120611]
[1765466454502,8.91561829,131.88,131.82,3.32120611]
[1765466454708,8.91561829,131.87,131.82,3.32120611]
[1765466454908,3.24,131.87,131.82,3.32120611]
[1765466455108,10.0646,131.87,131.82,10.14800611]
[1765466455610,3.24,131.86,131.82,10.14800611]
[1765466456013,10.0649,131.86,131.82,3.32120611]
[1765466456813,3.24,131.84,131.82,0.05120611]
[1765466457112,6.8255,131.85,131.82,0.05120611]
[1765466457113,10.0655,131.85,131.82,0.05120611]
[1765466457501,10.0659,131.84,131.82,0.05120611]
[1765466457705,3.24,131.83,131.82,0.05120611]
[1765466458310,8.95216286,131.83,131.82,0.05120611]
[1765466459511,10.0675,131.81,131.78,64.48]
[1765466459814,3.24,131.81,131.78,64.48]
[1765466460004,3.24,131.83,131.78,64.48]
[1765466460205,15.78857803,131.82,131.78,64.48]
[1765466460414,5.72157803,131.81,131.78,64.48]
[1765466460709,6.87707775,131.81,131.79,0.05316206]
[1765466461006,5.72334812,131.8,131.79,0.05316206]
[1765466461200,3.24,131.79,131.73,6.8311]
[1765466461404,3.24,131.77,131.73,3.27]
[1765466461609,3.24,131.8,131.73,3.27]
[1765466461916,3.24,131.8,131.72,22.64408152]
[1765466461917,10.0703,131.76,131.72,22.64408152]
[1765466462107,111.95072194,131.79,131.73,0.05137687]
[1765466462108,3.29400675,131.75,131.73,0.05137687]
[1765466462308,3.29400675,131.75,131.66,106.3244]
[1765466462309,3.24,131.73,131.66,22.45338651]
[1765466462514,10.0727,131.71,131.66,3.27]
[1765466462821,3.24,131.74,131.67,3.27]
[1765466463006,3.24,131.74,131.67,174.0623]
[1765466463210,6.8303,131.76,131.67,174.0623]
[1765466463211,6.8303,131.76,131.68,3.27]
[1765466463406,3.28925993,131.72,131.69,0.05108473]
[1765466463615,0.04925993,131.72,131.69,3.32438016]
[1765466464918,0.04925993,131.72,131.71,3.27]
[1765466465122,3.24,131.79,131.72,3.27]
[1765466465309,3.24,131.79,131.73,3.27]
[1765466465908,3.24,131.79,131.72,71.3119]
[1765466466108,0.04800834,131.77,131.74,3.32105223]
[1765466466918,0.04800834,131.77,131.74,3.27]
[1765466467121,106.2814,131.72,131.6,22.94]
[1765466467324,3.24,131.68,131.6,64.5]
[1765466467622,106.2895,131.71,131.6,64.5]
[1765466467817,7.6711155,131.7,131.6,64.5]
[1765466468016,0.04850264,131.66,131.64,0.05520585]
[1765466468215,3.28995654,131.66,131.64,0.05520585]
[1765466468611,0.04995654,131.66,131.64,0.05520585]
[1765466468808,3.24,131.7,131.64,0.05520585]
[1765466469022,3.24,131.72,131.64,2.34520585]
[1765466469216,3.24,131.72,131.64,2.29]
[1765466469727,3.2903462,131.69,131.67,0.05842514]
[1765466470233,0.0503462,131.69,131.67,0.05842514]
[1765466470726,3.2903462,131.69,131.67,0.05842514]
[1765466470912,0.0503462,131.69,131.67,0.05842514]
[1765466472925,0.0503462,131.69,131.67,2.34842514]
[1765466473131,0.0503462,131.69,131.67,66.86842514]
[1765466473627,10.0607,131.75,131.68,2.29]
[1765466474019,10.0612,131.74,131.68,9.1239]
[1765466474220,3.23,131.73,131.64,108.6283]
[1765466474522,0.05469557,131.7,131.67,9.18268951]
[1765466475022,0.05469557,131.7,131.69,2.29]
[1765466475425,3.23,131.77,131.7,2.23]
[1765466475623,3.23,131.77,131.71,64.52]
[1765466476119,3.23,131.77,131.71,66.75]
[1765466476323,3.23,131.8,131.73,0.05120177]